[Event "Ebbe Cup 48"]
[Site "Goteborgs Schackcentrum, Vegatan 20, Gothenburg, Sweden"]
[Date "2025.02.16"]
[Round "5.1"]
[White "Andren, Patrik"]
[Black "Brodocz, Bartosz"]
[Result "1-0"]
[TimeControl "90 minutes + 30 seconds per move from move one"]
[WhiteFideId "1767135"]
[BlackFideId "21025894"]
[WhiteElo "1959"]
[BlackElo "1821"]

1. e4 {[%clk 01:30:50]} {[%emt 00:00:09]} c5 {[%clk 01:30:56]} {[%emt
00:00:05]} 2. Nc3 {[%clk 01:31:15]} {[%emt 00:00:05]} g6 {[%clk 01:31:19]}
{[%emt 00:00:06]} 3. d4 {[%clk 01:31:38]} {[%emt 00:00:07]} cxd4 {[%clk
01:31:45]} {[%emt 00:00:05]} 4. Qxd4 {[%clk 01:32:03]} {[%emt 00:00:04]} Nf6
{[%clk 01:32:10]} {[%emt 00:00:05]} 5. Nf3 {[%clk 01:32:05]} {[%emt 00:00:28]}
Nc6 {[%clk 01:31:27]} {[%emt 00:01:13]} 6. Qa4 {[%clk 01:32:28]} {[%emt
00:00:07]} d6 {[%clk 01:31:44]} {[%emt 00:00:12]} 7. e5 {[%clk 01:32:52]}
{[%emt 00:00:07]} dxe5 {[%clk 01:31:48]} {[%emt 00:00:26]} 8. Nxe5 {[%clk
01:33:14]} {[%emt 00:00:07]} Bd7 {[%clk 01:31:44]} {[%emt 00:00:33]} 9. Nxd7
{[%clk 01:33:38]} {[%emt 00:00:08]} Qxd7 {[%clk 01:31:21]} {[%emt 00:00:53]} 10.
Be3 {[%clk 01:32:08]} {[%emt 00:02:00]} a6 {[%clk 01:29:30]} {[%emt 00:02:21]}
11. Rd1 {[%clk 01:21:14]} {[%emt 00:11:25]} Qc7 {[%clk 01:24:06]} {[%emt
00:05:54]} 12. Bf4 {[%clk 01:07:12]} {[%emt 00:14:32]} e5 {[%clk 01:24:14]}
{[%emt 00:00:20]} 13. Bg5 {[%clk 01:07:29]} {[%emt 00:00:14]} Bg7 {[%clk
01:21:23]} {[%emt 00:03:20]} 14. Nb5 {[%clk 01:00:54]} {[%emt 00:07:05]} Qb8
{[%clk 01:11:13]} {[%emt 00:10:39]} 15. Nd6+ {[%clk 00:59:00]} {[%emt
00:02:26]} Kf8 {[%clk 01:10:58]} {[%emt 00:00:42]} 16. Qa3 {[%clk 00:55:19]}
{[%emt 00:04:14]} Ne7 {[%clk 01:08:19]} {[%emt 00:03:09]} 17. Bxf6 {[%clk
00:51:46]} {[%emt 00:04:04]} Bxf6 {[%clk 01:08:24]} {[%emt 00:00:25]} 18. Qb3
{[%clk 00:51:50]} {[%emt 00:00:26]} Nd5 {[%clk 01:07:59]} {[%emt 00:00:55]} 19.
Qxd5 {[%clk 00:52:04]} {[%emt 00:00:17]} Qc7 {[%clk 01:08:22]} {[%emt
00:00:07]} 20. Bc4 {[%clk 00:51:03]} {[%emt 00:01:31]} Rd8 {[%clk 01:07:41]}
{[%emt 00:01:09]} 21. Qxf7+ {[%clk 00:51:09]} {[%emt 00:00:25]} Qxf7 {[%clk
01:08:01]} {[%emt 00:00:10]} 22. Nxf7 {[%clk 00:51:33]} {[%emt 00:00:06]} Rxd1+
{[%clk 01:08:20]} {[%emt 00:00:10]} 23. Kxd1 {[%clk 00:51:52]} {[%emt
00:00:10]} Rg8 {[%clk 01:08:37]} {[%emt 00:00:13]} 24. Re1 {[%clk 00:51:32]}
{[%emt 00:00:50]} Kg7 {[%clk 01:08:50]} {[%emt 00:00:17]} 25. Nxe5 {[%clk
00:51:03]} {[%emt 00:01:00]} Rd8+ {[%clk 01:09:04]} {[%emt 00:00:16]} 26. Nd3
{[%clk 00:50:26]} {[%emt 00:01:07]} Bxb2 {[%clk 01:09:17]} {[%emt 00:00:17]} 27.
Re7+ {[%clk 00:50:30]} {[%emt 00:00:26]} Kh6 {[%clk 01:09:34]} {[%emt
00:00:13]} 28. Rxb7 {[%clk 00:50:28]} {[%emt 00:00:32]} Bc3 {[%clk 01:09:45]}
{[%emt 00:00:18]} 29. Bxa6 {[%clk 00:49:17]} {[%emt 00:01:42]} Ra8 {[%clk
01:09:58]} {[%emt 00:00:17]} 30. Bc4 {[%clk 00:49:24]} {[%emt 00:00:23]} Ra4
{[%clk 01:10:15]} {[%emt 00:00:12]} 31. Bg8 {[%clk 00:48:26]} {[%emt 00:01:29]}
Bg7 {[%clk 01:10:20]} {[%emt 00:00:25]} 32. f4 {[%clk 00:45:27]} {[%emt
00:03:29]} Ra8 {[%clk 01:10:35]} {[%emt 00:00:15]} 33. Bd5 {[%clk 00:45:11]}
{[%emt 00:00:44]} Re8 {[%clk 01:10:39]} {[%emt 00:00:27]} 34. g4 {[%clk
00:44:55]} {[%emt 00:00:46]} 1-0

[ePGN "0.1;DGT LiveChess/2.2.6"]

[Event "Ebbe Cup 48"]
[Site "Goteborgs Schackcentrum, Vegatan 20, Gothenburg, Sweden"]
[Date "2025.02.16"]
[Round "5.2"]
[White "Green, David"]
[Black "Christoforidis, Nicolas"]
[Result "0-1"]
[TimeControl "90 minutes + 30 seconds per move from move one"]
[WhiteFideId "1769332"]
[BlackFideId "1789180"]
[WhiteElo "1892"]
[BlackElo "1886"]

1. e4 {[%clk 01:30:53]} c5 {[%clk 01:29:57]} {[%emt 00:01:09]} 2. Nf3 {[%clk
01:31:07]} {[%emt 00:00:15]} d6 {[%clk 01:29:29]} {[%emt 00:00:58]} 3. d4
{[%clk 01:31:07]} {[%emt 00:00:30]} cxd4 {[%clk 01:29:53]} {[%emt 00:00:06]} 4.
Nxd4 {[%clk 01:31:26]} {[%emt 00:00:10]} a6 {[%clk 01:29:44]} {[%emt 00:00:39]}
5. Nc3 {[%clk 01:30:58]} {[%emt 00:00:56]} g6 {[%clk 01:25:33]} {[%emt
00:04:44]} 6. Be3 {[%clk 01:30:04]} {[%emt 00:01:24]} Nf6 {[%clk 01:24:01]}
{[%emt 00:02:02]} 7. f3 {[%clk 01:27:46]} {[%emt 00:02:48]} Bg7 {[%clk
01:22:17]} {[%emt 00:02:13]} 8. Qd2 {[%clk 01:26:56]} {[%emt 00:01:21]} Nc6
{[%clk 01:20:23]} {[%emt 00:02:24]} 9. O-O-O {[%clk 01:25:17]} {[%emt
00:02:10]} Nxd4 {[%clk 01:11:10]} {[%emt 00:09:42]} 10. Bxd4 {[%clk 01:23:15]}
{[%emt 00:02:30]} O-O {[%clk 01:04:52]} {[%emt 00:06:52]} 11. g4 {[%clk
01:18:51]} {[%emt 00:04:54]} Be6 {[%clk 00:57:44]} {[%emt 00:07:37]} 12. Kb1
{[%clk 01:17:09]} {[%emt 00:02:12]} Rc8 {[%clk 00:52:58]} {[%emt 00:05:16]} 13.
h4 {[%clk 01:13:36]} {[%emt 00:04:03]} h5 {[%clk 00:42:55]} {[%emt 00:10:33]}
14. gxh5 {[%emt 00:26:37]} Nxh5 {[%clk 00:40:34]} {[%emt 00:02:41]} 15. Bxg7
{[%clk 00:44:37]} {[%emt 00:03:32]} Kxg7 {[%clk 00:40:17]} {[%emt 00:00:47]} 16.
Bh3 {[%clk 00:38:22]} {[%emt 00:06:46]} Bxh3 {[%clk 00:36:04]} {[%emt
00:04:43]} 17. Rxh3 {[%clk 00:38:26]} {[%emt 00:00:25]} Qd7 {[%clk 00:34:48]}
{[%emt 00:01:45]} 18. Rhh1 {[%clk 00:36:40]} {[%emt 00:02:17]} Qe6 {[%clk
00:32:26]} {[%emt 00:02:52]} 19. Rdg1 {[%clk 00:33:41]} {[%emt 00:03:29]} Rc5
{[%clk 00:29:41]} {[%emt 00:03:14]} 20. Rg5 {[%clk 00:30:43]} {[%emt 00:03:29]}
Rxg5 {[%clk 00:24:01]} {[%emt 00:06:10]} 21. hxg5 {[%clk 00:26:30]} {[%emt
00:04:42]} Qe5 {[%clk 00:21:28]} {[%emt 00:03:01]} 22. Nd5 {[%clk 00:24:25]}
{[%emt 00:02:36]} Re8 {[%clk 00:15:00]} {[%emt 00:06:58]} 23. Re1 {[%clk
00:19:28]} {[%emt 00:05:28]} Qg3 {[%clk 00:13:34]} {[%emt 00:01:54]} 24. Qe3
{[%emt 00:05:32]} e5 {[%clk 00:11:37]} 25. Rd1 {[%clk 00:14:03]} {[%emt
00:03:22]} Rd8 {[%clk 00:08:56]} {[%emt 00:03:10]} 26. a3 {[%clk 00:13:29]}
{[%emt 00:01:05]} Qh3 {[%clk 00:07:31]} {[%emt 00:01:54]} 27. Rd3 {[%clk
00:10:20]} {[%emt 00:03:39]} Qe6 {[%clk 00:04:55]} {[%emt 00:03:06]} 28. Rb3
{[%clk 00:09:33]} {[%emt 00:01:18]} Rb8 {[%clk 00:03:08]} {[%emt 00:02:17]} 29.
Qc3 {[%clk 00:08:24]} {[%emt 00:01:39]} b5 {[%clk 00:02:16]} {[%emt 00:01:22]}
30. Qc6 {[%clk 00:07:15]} {[%emt 00:01:37]} Ng3 {[%clk 00:01:40]} {[%emt
00:01:07]} 31. Nc7 {[%clk 00:05:37]} {[%emt 00:02:08]} Qh3 {[%clk 00:01:50]}
{[%emt 00:00:21]} 32. Re3 {[%clk 00:00:40]} {[%emt 00:05:24]} Qf1+ {[%clk
00:02:08]} {[%emt 00:00:14]} 33. Ka2 {[%clk 00:00:43]} {[%emt 00:00:27]} Ne2
{[%clk 00:02:03]} {[%emt 00:00:35]} 34. Rxe2 {[%clk 00:00:32]} {[%emt
00:00:42]} Qxe2 {[%clk 00:02:31]} {[%emt 00:00:02]} 35. Ne6+ {[%clk 00:00:32]}
{[%emt 00:00:30]} Kh7 {[%clk 00:02:50]} {[%emt 00:00:12]} 36. Qxd6 {[%clk
00:00:34]} {[%emt 00:00:28]} Qc4+ {[%clk 00:02:56]} {[%emt 00:00:24]} 37. Kb1
{[%clk 00:00:41]} {[%emt 00:00:22]} Rc8 {[%clk 00:03:11]} {[%emt 00:00:16]} 38.
Nf8+ {[%emt 00:00:40]} Kg7 {[%clk 00:03:00]} {[%emt 00:00:40]} 39. Nd7 {[%clk
00:00:32]} {[%emt 00:00:31]} Qxc2+ {[%clk 00:02:59]} {[%emt 00:00:30]} 40. Ka1
{[%clk 00:00:35]} {[%emt 00:00:26]} Qc1+ {[%clk 00:02:50]} {[%emt 00:00:39]} 41.
Ka2 {[%clk 00:00:59]} {[%emt 00:00:07]} Qc4+ {[%clk 00:01:57]} {[%emt
00:01:23]} 42. Ka1 {[%clk 00:01:01]} {[%emt 00:00:26]} Qe6 {[%clk 00:01:48]}
{[%emt 00:00:41]} 43. Qxe6 {[%clk 00:00:45]} {[%emt 00:00:46]} fxe6 {[%clk
00:02:17]} {[%emt 00:00:01]} 44. Nxe5 {[%clk 00:00:45]} {[%emt 00:00:31]} Rc5
{[%clk 00:02:24]} {[%emt 00:00:22]} 45. f4 {[%clk 00:00:51]} {[%emt 00:00:24]}
Rc1+ {[%clk 00:02:46]} {[%emt 00:00:07]} 46. Ka2 {[%clk 00:01:01]} {[%emt
00:00:21]} Re1 {[%clk 00:03:14]} {[%emt 00:00:02]} 47. Nd3 {[%clk 00:01:07]}
{[%emt 00:00:21]} Rxe4 {[%clk 00:02:53]} {[%emt 00:01:03]} 48. Nc5 {[%clk
00:01:10]} {[%emt 00:00:24]} Re2 {[%clk 00:02:38]} {[%emt 00:00:48]} 49. Nxa6
{[%clk 00:01:24]} {[%emt 00:00:17]} e5 {[%clk 00:02:50]} {[%emt 00:00:19]} 50.
fxe5 {[%clk 00:01:10]} {[%emt 00:00:43]} Rxe5 {[%clk 00:03:11]} {[%emt
00:00:08]} 51. Nc7 {[%clk 00:01:13]} {[%emt 00:00:25]} Kf7 {[%clk 00:03:29]}
{[%emt 00:00:14]} 52. Kb3 {[%clk 00:01:19]} {[%emt 00:00:24]} Rc5 {[%clk
00:03:28]} {[%emt 00:00:30]} 53. Na6 {[%clk 00:01:12]} {[%emt 00:00:35]} Rxg5
{[%clk 00:03:43]} {[%emt 00:00:17]} 54. Kb4 {[%clk 00:01:12]} {[%emt 00:00:30]}
Rg2 {[%clk 00:03:42]} {[%emt 00:00:31]} 55. b3 {[%clk 00:01:14]} {[%emt
00:00:28]} Re2 {[%clk 00:03:31]} {[%emt 00:00:41]} 56. Kxb5 {[%clk 00:01:21]}
{[%emt 00:00:23]} g5 {[%clk 00:03:49]} {[%emt 00:00:12]} 57. Kc4 {[%clk
00:00:48]} {[%emt 00:01:02]} g4 {[%clk 00:04:02]} {[%emt 00:00:18]} 58. Nc5
{[%clk 00:00:33]} {[%emt 00:00:45]} g3 {[%clk 00:04:06]} {[%emt 00:00:26]} 59.
Nd3 {[%clk 00:00:31]} {[%emt 00:00:31]} g2 {[%clk 00:04:05]} {[%emt 00:00:31]}
60. Nf4 {[%clk 00:00:45]} {[%emt 00:00:15]} Rc2+ {[%clk 00:03:51]} {[%emt
00:00:45]} 61. Kd3 {[%clk 00:00:54]} {[%emt 00:00:22]} g1=Q {[%clk 00:04:14]}
{[%emt 00:00:07]} 62. Kxc2 {[%clk 00:01:12]} {[%emt 00:00:11]} Qf2+ {[%clk
00:04:36]} {[%emt 00:00:08]} 0-1

[ePGN "0.1;DGT LiveChess/2.2.6"]

[Event "Ebbe Cup 48"]
[Site "Goteborgs Schackcentrum, Vegatan 20, Gothenburg, Sweden"]
[Date "2025.02.16"]
[Round "5.3"]
[White "Havner, Arvid"]
[Black "Bergdahl, Daniel"]
[Result "1/2-1/2"]
[TimeControl "90 minutes + 30 seconds per move from move one"]
[WhiteFideId "1769308"]
[BlackFideId "1780921"]
[WhiteElo "1881"]
[BlackElo "1818"]

1. c4 {[%clk 01:31:00]} Nf6 {[%clk 01:30:58]} {[%emt 00:00:02]} 2. g3 {[%clk
01:31:20]} {[%emt 00:00:09]} g6 {[%clk 01:31:24]} {[%emt 00:00:04]} 3. Bg2
{[%clk 01:31:47]} {[%emt 00:00:04]} Bg7 {[%clk 01:31:47]} {[%emt 00:00:06]} 4.
Nc3 {[%clk 01:32:10]} {[%emt 00:00:07]} O-O {[%clk 01:32:12]} {[%emt 00:00:05]}
5. Nf3 {[%clk 01:32:24]} {[%emt 00:00:16]} d6 {[%clk 01:32:32]} {[%emt
00:00:10]} 6. d4 {[%clk 01:32:46]} {[%emt 00:00:09]} c5 {[%clk 01:32:55]}
{[%emt 00:00:06]} 7. O-O {[%clk 01:33:01]} {[%emt 00:00:15]} Nc6 {[%clk
01:33:19]} {[%emt 00:00:06]} 8. d5 {[%clk 01:33:13]} {[%emt 00:00:18]} Na5
{[%clk 01:33:43]} {[%emt 00:00:06]} 9. Nd2 {[%clk 01:32:19]} {[%emt 00:01:23]}
Nd7 {[%clk 01:32:38]} {[%emt 00:01:36]} 10. e4 {[%clk 01:29:27]} {[%emt
00:03:22]} Ne5 {[%clk 01:32:35]} {[%emt 00:00:33]} 11. Qe2 {[%clk 01:29:41]}
{[%emt 00:00:16]} a6 {[%clk 01:32:26]} {[%emt 00:00:38]} 12. h3 {[%clk
01:27:46]} {[%emt 00:02:26]} Rb8 {[%clk 01:31:10]} {[%emt 00:01:46]} 13. a4
{[%clk 01:20:37]} {[%emt 00:07:39]} Qb6 {[%clk 01:27:26]} {[%emt 00:04:15]} 14.
f4 {[%clk 01:20:16]} {[%emt 00:00:51]} Nd7 {[%clk 01:26:28]} {[%emt 00:01:29]}
15. Qd3 {[%clk 01:11:40]} {[%emt 00:09:05]} Qc7 {[%clk 01:24:35]} {[%emt
00:02:23]} 16. Rb1 {[%clk 01:09:28]} {[%emt 00:02:42]} Nb6 {[%clk 01:23:45]}
{[%emt 00:01:20]} 17. b3 {[%emt 00:02:36]} f5 {[%clk 01:22:52]} 18. Bb2 {[%clk
01:07:52]} {[%emt 00:01:24]} e5 {[%clk 01:18:09]} {[%emt 00:05:12]} 19. dxe6
{[%clk 01:03:15]} {[%emt 00:05:06]} Bxe6 {[%clk 01:17:54]} {[%emt 00:00:46]} 20.
Nd5 {[%clk 01:03:08]} {[%emt 00:00:37]} Bxd5 {[%clk 01:17:11]} {[%emt
00:01:12]} 21. exd5 {[%clk 01:03:17]} {[%emt 00:00:21]} Bxb2 {[%clk 01:16:52]}
{[%emt 00:00:49]} 22. Rxb2 {[%clk 01:03:38]} {[%emt 00:00:09]} Qg7 {[%clk
01:17:15]} {[%emt 00:00:08]} 23. Rbb1 {[%clk 01:02:30]} {[%emt 00:01:39]} Rbe8
{[%clk 01:15:07]} {[%emt 00:02:38]} 24. Nf3 {[%clk 00:59:11]} {[%emt 00:03:48]}
h6 {[%clk 01:12:41]} {[%emt 00:02:56]} 25. Qd2 {[%clk 00:51:37]} {[%emt
00:08:05]} Naxc4 {[%clk 01:12:00]} {[%emt 00:01:10]} 26. bxc4 {[%clk 00:51:17]}
{[%emt 00:00:50]} Nxc4 {[%clk 01:12:25]} {[%emt 00:00:06]} 27. Qd3 {[%clk
00:51:00]} {[%emt 00:00:46]} Re4 {[%clk 01:12:20]} {[%emt 00:00:35]} 28. Rfe1
{[%clk 00:50:15]} {[%emt 00:01:14]} Rfe8 {[%clk 01:11:30]} {[%emt 00:01:22]} 29.
Qxc4 {[%clk 00:49:32]} {[%emt 00:01:12]} Rxc4 {[%clk 01:11:19]} {[%emt
00:00:41]} 30. Rxe8+ {[%clk 00:49:53]} {[%emt 00:00:10]} Kh7 {[%clk 01:11:24]}
{[%emt 00:00:25]} 31. Rbe1 {[%clk 00:45:44]} {[%emt 00:04:38]} Re4 {[%clk
01:10:54]} {[%emt 00:01:01]} 32. R8xe4 {[%clk 00:35:26]} {[%emt 00:10:48]} fxe4
{[%clk 01:11:05]} {[%emt 00:00:17]} 33. Rxe4 {[%clk 00:35:52]} {[%emt
00:00:04]} b5 {[%clk 01:07:48]} {[%emt 00:03:48]} 34. axb5 {[%clk 00:35:15]}
{[%emt 00:01:07]} axb5 {[%clk 01:08:05]} {[%emt 00:00:13]} 35. Re6 {[%clk
00:32:08]} {[%emt 00:03:38]} b4 {[%clk 01:02:48]} {[%emt 00:05:47]} 36. Ne5
{[%clk 00:23:03]} {[%emt 00:09:34]} Qa7 {[%clk 01:00:10]} {[%emt 00:03:08]} 37.
Rxd6 {[%clk 00:18:45]} {[%emt 00:04:48]} Qa1+ {[%clk 00:57:20]} {[%emt
00:03:21]} 38. Kf2 {[%clk 00:18:48]} {[%emt 00:00:27]} b3 {[%clk 00:56:48]}
{[%emt 00:01:02]} 39. Be4 {[%clk 00:19:03]} {[%emt 00:00:15]} Qd4+ {[%clk
00:48:22]} {[%emt 00:08:55]} 40. Kf3 {[%clk 00:19:18]} {[%emt 00:00:15]} Qd1+
{[%clk 00:47:38]} {[%emt 00:01:14]} 41. Ke3 {[%clk 00:18:17]} {[%emt 00:01:31]}
Qd4+ {[%clk 00:44:53]} {[%emt 00:03:15]} 1/2-1/2

[ePGN "0.1;DGT LiveChess/2.2.6"]

[Event "Ebbe Cup 48"]
[Site "Goteborgs Schackcentrum, Vegatan 20, Gothenburg, Sweden"]
[Date "2025.02.16"]
[Round "5.4"]
[White "Gallardo, Guillermo"]
[Black "Madevan Vaishnavi, Yaashvan"]
[Result "1/2-1/2"]
[TimeControl "90 minutes + 30 seconds per move from move one"]
[WhiteFideId "1773488"]
[BlackFideId "1772180"]
[WhiteElo "1773"]
[BlackElo "1867"]

1. c4 {[%clk 01:30:57]} {[%emt 00:00:03]} e5 {[%clk 01:29:33]} {[%emt
00:01:27]} 2. g3 {[%clk 01:30:58]} {[%emt 00:00:28]} Nf6 {[%clk 01:29:07]}
{[%emt 00:00:57]} 3. Bg2 {[%clk 01:30:56]} {[%emt 00:00:32]} Nc6 {[%clk
01:28:42]} {[%emt 00:00:55]} 4. Nc3 {[%clk 01:30:47]} {[%emt 00:00:39]} Bc5
{[%clk 01:27:49]} {[%emt 00:01:24]} 5. e3 {[%clk 01:29:09]} {[%emt 00:02:07]}
O-O {[%clk 01:27:48]} {[%emt 00:00:30]} 6. Nge2 {[%clk 01:28:57]} {[%emt
00:00:43]} Re8 {[%clk 01:27:08]} {[%emt 00:01:10]} 7. O-O {[%clk 01:28:53]}
{[%emt 00:00:34]} e4 {[%clk 01:26:36]} {[%emt 00:01:02]} 8. d4 {[%clk
01:18:56]} {[%emt 00:10:27]} exd3 {[%clk 01:26:53]} {[%emt 00:00:13]} 9. Qxd3
{[%clk 01:18:30]} {[%emt 00:00:56]} d6 {[%clk 01:26:59]} {[%emt 00:00:24]} 10.
Qd1 {[%clk 00:57:08]} {[%emt 00:21:52]} Ne5 {[%clk 01:20:19]} {[%emt 00:07:11]}
11. b3 {[%clk 00:52:58]} {[%emt 00:04:41]} Rb8 {[%clk 01:18:11]} {[%emt
00:02:36]} 12. Na4 {[%clk 00:47:15]} {[%emt 00:06:13]} Bb6 {[%clk 01:17:09]}
{[%emt 00:01:33]} 13. Nxb6 {[%clk 00:46:54]} {[%emt 00:00:51]} axb6 {[%clk
01:17:16]} {[%emt 00:00:23]} 14. Nc3 {[%clk 00:42:15]} {[%emt 00:05:08]} Bg4
{[%clk 01:16:41]} {[%emt 00:01:05]} 15. f3 {[%clk 00:40:03]} {[%emt 00:02:43]}
Be6 {[%clk 01:14:02]} {[%emt 00:03:07]} 16. e4 {[%clk 00:37:28]} {[%emt
00:03:05]} Nc6 {[%clk 01:06:29]} {[%emt 00:08:04]} 17. Bb2 {[%clk 00:33:40]}
{[%emt 00:04:19]} Nd7 {[%clk 00:58:24]} {[%emt 00:08:25]} 18. Qd2 {[%clk
00:31:34]} {[%emt 00:02:44]} f5 {[%clk 00:43:53]} {[%emt 00:15:02]} 19. Nd5
{[%clk 00:29:29]} {[%emt 00:02:35]} Rf8 {[%clk 00:37:16]} {[%emt 00:07:07]} 20.
Nf4 {[%clk 00:21:29]} {[%emt 00:08:30]} Qe7 {[%clk 00:35:56]} {[%emt 00:01:50]}
21. Qc3 {[%clk 00:19:44]} {[%emt 00:02:16]} Rf7 {[%clk 00:35:10]} {[%emt
00:01:12]} 22. Rae1 {[%clk 00:18:20]} {[%emt 00:01:58]} Nde5 {[%clk 00:27:40]}
{[%emt 00:08:00]} 23. Nxe6 {[%clk 00:15:37]} {[%emt 00:03:12]} Qxe6 {[%clk
00:27:35]} {[%emt 00:00:35]} 24. f4 {[%clk 00:15:47]} {[%emt 00:00:20]} Ng4
{[%clk 00:26:40]} {[%emt 00:01:19]} 25. h3 {[%clk 00:14:18]} {[%emt 00:02:04]}
Nf6 {[%clk 00:25:25]} {[%emt 00:01:43]} 26. e5 {[%clk 00:11:42]} {[%emt
00:03:08]} Ne4 {[%clk 00:24:02]} {[%emt 00:01:53]} 27. exd6 {[%clk 00:05:28]}
{[%emt 00:06:44]} cxd6 {[%clk 00:21:26]} {[%emt 00:03:07]} 28. Bxe4 {[%clk
00:02:20]} {[%emt 00:03:37]} fxe4 {[%clk 00:21:40]} {[%emt 00:00:16]} 29. f5
{[%clk 00:02:20]} {[%emt 00:00:30]} Qh6 {[%clk 00:19:58]} {[%emt 00:02:03]} 30.
g4 {[%clk 00:01:34]} {[%emt 00:01:26]} Re8 {[%clk 00:20:08]} {[%emt 00:00:20]}
31. Qe3 {[%clk 00:01:00]} {[%emt 00:01:04]} Qxe3+ {[%clk 00:20:18]} {[%emt
00:00:21]} 32. Rxe3 {[%clk 00:01:27]} {[%emt 00:00:02]} h6 {[%clk 00:18:47]}
{[%emt 00:02:02]} 33. Ba3 {[%clk 00:01:08]} {[%emt 00:00:50]} Nd4 {[%clk
00:17:34]} {[%emt 00:01:43]} 34. Bxd6 {[%clk 00:00:51]} {[%emt 00:00:47]} Rd7
{[%clk 00:17:18]} {[%emt 00:00:46]} 35. Bg3 {[%clk 00:00:59]} {[%emt 00:00:22]}
Nc2 {[%clk 00:17:16]} {[%emt 00:00:31]} 36. Re2 {[%clk 00:01:12]} {[%emt
00:00:18]} Nd4 {[%clk 00:17:41]} {[%emt 00:00:06]} 37. Re3 {[%clk 00:01:19]}
{[%emt 00:00:22]} Nc2 {[%clk 00:17:53]} {[%emt 00:00:18]} 38. Re2 {[%clk
00:01:25]} {[%emt 00:00:24]} Nd4 {[%clk 00:17:58]} {[%emt 00:00:24]} 39. Re3
{[%clk 00:01:17]} {[%emt 00:00:06]} 1/2-1/2

[ePGN "0.1;DGT LiveChess/2.2.6"]

[Event "Ebbe Cup 48"]
[Site "Goteborgs Schackcentrum, Vegatan 20, Gothenburg, Sweden"]
[Date "2025.02.16"]
[Round "5.5"]
[White "Gustavsson, Ville"]
[Black "Evertsson, David"]
[Result "1-0"]
[TimeControl "90 minutes + 30 seconds per move from move one"]
[WhiteFideId "1792822"]
[BlackFideId "1777424"]
[WhiteElo "1884"]
[BlackElo "1710"]

1. e4 {[%clk 01:30:59]} c5 {[%clk 01:30:38]} {[%emt 00:00:22]} 2. Nc3 {[%clk
01:30:49]} {[%emt 00:00:41]} Nc6 {[%clk 01:30:26]} {[%emt 00:00:41]} 3. f4
{[%clk 01:31:01]} {[%emt 00:00:19]} g6 {[%clk 01:30:37]} {[%emt 00:00:18]} 4.
Nf3 {[%clk 01:31:18]} {[%emt 00:00:14]} Bg7 {[%clk 01:30:30]} {[%emt 00:00:36]}
5. Bb5 {[%clk 01:31:37]} {[%emt 00:00:12]} Nd4 {[%clk 01:27:40]} {[%emt
00:03:19]} 6. a4 {[%clk 01:27:25]} {[%emt 00:04:43]} a6 {[%clk 01:25:04]}
{[%emt 00:03:05]} 7. Bc4 {[%clk 01:27:41]} {[%emt 00:00:15]} e6 {[%clk
01:24:18]} {[%emt 00:01:16]} 8. d3 {[%clk 01:26:59]} {[%emt 00:01:12]} Ne7
{[%clk 01:22:51]} {[%emt 00:01:55]} 9. O-O {[%clk 01:26:23]} {[%emt 00:01:06]}
O-O {[%clk 01:22:58]} {[%emt 00:00:22]} 10. Ba2 {[%clk 01:23:58]} {[%emt
00:02:57]} d5 {[%clk 01:20:59]} {[%emt 00:02:27]} 11. e5 {[%clk 01:24:05]}
{[%emt 00:00:25]} Nec6 {[%clk 01:06:12]} {[%emt 00:15:15]} 12. Ne2 {[%clk
01:23:24]} {[%emt 00:01:13]} Nxf3+ {[%clk 00:48:54]} {[%emt 00:17:48]} 13. Rxf3
{[%clk 01:23:51]} {[%emt 00:00:03]} d4 {[%clk 00:47:28]} {[%emt 00:01:55]} 14.
Ng3 {[%clk 01:21:37]} {[%emt 00:02:44]} Ne7 {[%clk 00:44:38]} {[%emt 00:03:20]}
15. Ne4 {[%clk 01:17:02]} {[%emt 00:05:07]} b6 {[%clk 00:43:48]} {[%emt
00:01:18]} 16. Bd2 {[%clk 01:16:14]} {[%emt 00:01:17]} Bb7 {[%clk 00:42:31]}
{[%emt 00:01:46]} 17. Qe1 {[%clk 01:13:49]} {[%emt 00:02:57]} Qc7 {[%clk
00:32:51]} {[%emt 00:10:09]} 18. g4 {[%clk 01:07:53]} {[%emt 00:06:27]} Qc6
{[%clk 00:12:34]} {[%emt 00:20:47]} 19. Qh4 {[%clk 00:51:52]} {[%emt 00:16:32]}
Nf5 {[%clk 00:08:44]} {[%emt 00:04:20]} 20. gxf5 {[%clk 00:39:19]} {[%emt
00:13:03]} exf5 {[%clk 00:08:08]} {[%emt 00:01:06]} 21. Re1 {[%clk 00:38:20]}
{[%emt 00:01:29]} fxe4 {[%clk 00:08:08]} {[%emt 00:00:29]} 22. dxe4 {[%clk
00:38:29]} {[%emt 00:00:22]} Qxa4 {[%clk 00:04:13]} {[%emt 00:04:25]} 23. Bb3
{[%clk 00:36:25]} {[%emt 00:02:35]} Qb5 {[%clk 00:02:38]} {[%emt 00:02:04]} 24.
f5 {[%clk 00:36:13]} {[%emt 00:00:42]} c4 {[%clk 00:01:45]} {[%emt 00:01:23]}
25. Bh6 {[%clk 00:35:42]} {[%emt 00:01:01]} cxb3 {[%clk 00:01:06]} {[%emt
00:01:08]} 26. Bxg7 {[%clk 00:36:02]} {[%emt 00:00:11]} Kxg7 {[%clk 00:00:56]}
{[%emt 00:00:39]} 27. f6+ {[%clk 00:36:29]} {[%emt 00:00:03]} Kh8 {[%clk
00:00:42]} {[%emt 00:00:45]} 28. Qh6 {[%clk 00:36:57]} {[%emt 00:00:01]} Rg8
{[%clk 00:00:32]} {[%emt 00:00:40]} 29. Rh3 {[%clk 00:37:26]} {[%emt 00:00:02]}
Qf1+ {[%clk 00:00:37]} {[%emt 00:00:24]} 30. Rxf1 {[%clk 00:37:21]} {[%emt
00:00:35]} Bxe4 {[%clk 00:00:58]} {[%emt 00:00:09]} 31. Qxh7# {[%clk 00:37:38]}
{[%emt 00:00:13]} 1-0

[ePGN "0.1;DGT LiveChess/2.2.6"]